[Event "41st Amateur D7"]
[Site "ChessGUI4"]
[Date "2013.07.06"]
[Round "10.5"]
[White "ChessKiss 1.7 64-bit"]
[Black "FireFly 2.6.0 64-bit"]
[Result "0-1"]
[BlackElo "2258"]
[ECO "B90"]
[EventDate "2013.??.??"]
[TimeControl "40/1500:40/1500:40/1500"]
[WhiteElo "2214"]

{ i5 Quad } 1.e4 { [%eval 0,1] [%emt 0:00:00] } 1...c5
{ [%eval 0,1] [%emt 0:00:00] } 2.Nf3 { [%eval 0,1] [%emt 0:00:00] } 2...d6
{ [%eval 0,1] [%emt 0:00:00] } 3.d4 { [%eval 0,1] [%emt 0:00:00] } 3...cxd4
{ [%eval 0,1] [%emt 0:00:00] } 4.Nxd4 { [%eval 0,1] [%emt 0:00:00] } 4...Nf6
{ [%eval 0,1] [%emt 0:00:00] } 5.Nc3 { [%eval 0,1] [%emt 0:00:00] } 5...a6
{ [%eval 0,1] [%emt 0:00:00] } 6.Be3 { [%eval 0,1] [%emt 0:00: 00] } 6...e5
{ [%eval 0,1] [%emt 0:00:00] } 7.Nb3 { [%eval 0,1] [%emt 0:00:00] } 7...Be6
{ [%eval 0,1] [%emt 0:00:00] } 8.Qd2 { [%eval 0,1] [%emt 0:00:00] } 8...Be7
{ [%eval 0, 1] [%emt 0:00:00] } 9.O-O-O { [%eval 22,12] [%emt 0:00:43] }
9...O-O { [%eval -34,12] [%emt 0:00:57] (O-O) } 10.f3
{ [%eval 29,12] [%emt 0:00:41] (Kb1) } 10...Qc7
{ [%eval -22,12] [%emt 0:00:56] (Qc7) } 11.g4
{ [%eval 24,12] [%emt 0:00:40] (Kb1) } 11...Rc8
{ [%eval -22,12] [%emt 0:00:56] (Rc8) } 12.Qf2
{ [%eval 32,12] [%emt 0:00:39] (g5) } 12...Nfd7
{ [%eval 0,12] [%emt 0:00:55] (Nbd7) } 13.Kb1
{ [%eval 43,12] [%emt 0:00: 38] (Kb1) } 13...Nc6
{ [%eval -2,12] [%emt 0:00:54] (Nc6) } 14.Ka1
{ [%eval 47,12] [%emt 0:00:37] (Qd2) } 14...Nb4
{ [%eval 24,11] [%emt 0:00:53] (Kh8) } 15.a3
{ [%eval 78,12] [%emt 0:00:35] (Kb1) } 15...Nc6
{ [%eval 16,11] [%emt 0:00:52] (Bxb3) } 16.Nd5
{ [%eval 71,11] [%emt 0:00:31] (Bd3) } 16...Bxd5
{ [%eval 12,12] [%emt 0:00:52] (Bxd5) } 17.exd5
{ [%eval 83,14] [%emt 0:00:31] (exd5) } 17...Na5
{ [%eval 0,12] [%emt 0:00:51] (Na5) } 18.Nxa5
{ [%eval 79,13] [%emt 0:00:33] (Nxa5) } 18...Qxa5
{ [%eval -17,12] [%emt 0:00:41] (Qxa5) } 19.g5
{ [%eval 67,12] [%emt 0:00:31] (g5) } 19...Qa4
{ [%eval -14,11] [%emt 0:00:41] (Kh8) } 20.Bd3
{ [%eval 96,12] [%emt 0:00:32] (Kb1) } 20...Nc5
{ [%eval -19,11] [%emt 0:00:41] (g6) } 21.Bf5
{ [%eval 83,12] [%emt 0:00:31] (Bf5) } 21...Rc7
{ [%eval -21,11] [%emt 0:00:40] (Rc7) } 22.Rdg1
{ [%eval 75,12] [%emt 0:00:31] (Rhe1) } 22...g6
{ [%eval 13,11] [%emt 0:00:40] (g6) } 23.Rg4
{ [%eval 57,12] [%emt 0:00:29] (Bh3) } 23...Qe8
{ [%eval 10,11] [%emt 0:00:40] (Qe8) } 24.Be4
{ [%eval 66,12] [%emt 0:00:27] (Be4) } 24...Rd8
{ [%eval -32,12] [%emt 0:00:39] (f5) } 25.h4
{ [%eval 120,12] [%emt 0:00:27] (Bxc5) } 25...Nxe4
{ [%eval -32,12] [%emt 0:00: 39] (Rdc8) } 26.fxe4
{ [%eval 112,13] [%emt 0:00:26] (fxe4) } 26...Qd7
{ [%eval -21,12] [%emt 0:00:38] (Qd7) } 27.Rhg1
{ [%eval 120,12] [%emt 0:00:25] (Rg2) } 27...Rf8
{ [%eval -14,11] [%emt 0:00:38] (Rf8) } 28.c3
{ [%eval 109,11] [%emt 0:00:24] (Qe2) } 28...Rc4
{ [%eval -6,11] [%emt 0:00:37] (b5) } 29.h5
{ [%eval 114,11] [%emt 0: 00:24] (h5) } 29...Qa4
{ [%eval -22,11] [%emt 0:00:37] (b5) } 30.Qf3
{ [%eval 146,10] [%emt 0:00:23] (Qg2) } 30...Rxc3
{ [%eval 0,12] [%emt 0:00:36] (Qd7) } 31.bxc3
{ [%eval 209,11] [%emt 0:00:22] (bxc3) } 31...Qxa3+
{ [%eval 0,11] [%emt 0:00:36] (Qxa3) } 32.Kb1
{ [%eval 1,1] [%emt 0:00:00] (Kb1) } 32...Qxc3
{ [%eval 0,10] [%emt 0:00:28] } 33.R4g2
{ [%eval 201,10] [%emt 0:00:22] (R4g3) } 33...Bxg5
{ [%eval 0,11] [%emt 0:00: 28] (f5) } 34.Rxg5
{ [%eval 0,12] [%emt 0:00:21] (Rxg5) } 34...Qb3+
{ [%eval 0,13] [%emt 0:00:28] (Qb3) } 35.Ka1
{ [%eval 266,11] [%emt 0:00:20] (Ka1) } 35...Qa3+
{ [%eval 0,13] [%emt 0:00:28] (Qa3) } 36.Kb1
{ [%eval 1,1] [%emt 0:00:00] (Kb1) } 36...Rc8 { [%eval 0,12] [%emt 0:00:28] }
37.Qf2 { [%eval 4,10] [%emt 0:00:20] (hxg6) } 37...Qd3+
{ [%eval 369,12] [%emt 0:00:22] (Qb3) } 38.Ka1
{ [%eval -265,12] [%emt 0:00: 19] (Kb2) } 38...Rc4
{ [%eval 412,12] [%emt 0:00:18] (Rc2) } 39.Bc5
{ [%eval -253,11] [%emt 0:00:18] (Bc1) } 39...Ra4+
{ [%eval 514,12] [%emt 0:00:19] (Ra4) } 40.Kb2
{ [%eval -339,11] [%emt 0:00:18] (Kb2) } 40...Qb5+
{ [%eval 582,12] [%emt 0:00:20] (Qb5) } 41.Kc1
{ [%eval -559,12] [%emt 0:01:00] (Kc1) } 41...Ra1+
{ [%eval 616,13] [%emt 0: 00:23] (Rc4) } 42.Kd2
{ [%eval -530,13] [%emt 0:00:58] (Kd2) } 42...Qb2+
{ [%eval 558, 13] [%emt 0:00:23] (Qb2) } 43.Kd3
{ [%eval -489,13] [%emt 0:00:57] (Kd3) } 43...Qb3+
{ [%eval 538,13] [%emt 0:00:23] (Qb3) } 44.Ke2
{ [%eval -489,13] [%emt 0:00:55] (Ke2) } 0-1

[Event "41st Amateur D7"]
[Site "ChessGUI4"]
[Date "2013.07.06"]
[Round "11.1"]
[White "Carballo 0.8"]
[Black "Gibbon 2.57a 64-bit"]
[Result "1-0"]
[BlackElo "2251"]
[ECO "D38"]
[EventDate "2013.??.??"]
[TimeControl "40/1500:40/1500:40/1500"]
[WhiteElo "2273"]

{ i5 Quad } 1.d4 { [%eval 0,1] [%emt 0:00:00] } 1...Nf6
{ [%eval 0,1] [%emt 0:00:00] } 2.c4 { [%eval 0,1] [%emt 0:00:00] } 2...e6
{ [%eval 0,1] [%emt 0:00:00] } 3.Nf3 { [%eval 0,1] [%emt 0:00:00] } 3...d5
{ [%eval 0,1] [%emt 0:00:00] } 4.Nc3 { [%eval 0,1] [%emt 0:00:00] } 4...Bb4
{ [%eval 0,1] [%emt 0:00:00] } 5.cxd5 { [%eval 0,1] [%emt 0: 00:00] }
5...exd5 { [%eval 0,1] [%emt 0:00:00] } 6.Bg5 { [%eval 0,1] [%emt 0:00:00] }
6...h6 { [%eval 0,1] [%emt 0:00:00] } 7.Bxf6 { [%eval 0,1] [%emt 0:00:00] }
7...Qxf6 { [%eval 0,1] [%emt 0:00:00] } 8.Qa4+ { [%eval 0,1] [%emt 0:00:00] }
8...Nc6 { [%eval 0, 1] [%emt 0:00:00] } 9.e3
{ [%eval -14,13] [%emt 0:00:37] } 9...O-O
{ [%eval -8,14] [%emt 0:01:49] (O-O) } 10.Qb3
{ [%eval -4,13] [%emt 0:00:36] (Be2) } 10...Qg6
{ [%eval 16,12] [%emt 0:00:28] (Qg6) } 11.O-O-O
{ [%eval -1,14] [%emt 0:00:35] (Rc1) } 11...Bxc3
{ [%eval 29,13] [%emt 0:00:55] (Bxc3) } 12.bxc3
{ [%eval -6,14] [%emt 0:00:34] (bxc3) } 12...Rb8
{ [%eval 28,13] [%emt 0:00:53] (Rd8) } 13.Qxd5
{ [%eval 54,15] [%emt 0:00:33] (h3) } 13...Be6
{ [%eval 23,15] [%emt 0:01:15] (Be6) } 14.Qc5
{ [%eval 55,14] [%emt 0:00:32] (Qb5) } 14...Bxa2
{ [%eval 34,12] [%emt 0:00:22] (Bxa2) } 15.Kb2
{ [%eval 55,12] [%emt 0:00:32] (Nd2) } 15...Be6
{ [%eval 41,11] [%emt 0:00:23] (Rfd8) } 16.d5
{ [%eval 86,12] [%emt 0:00:31] (d5) } 16...Bg4
{ [%eval 27,13] [%emt 0:00:50] (Rbd8) } 17.Be2
{ [%eval 109,12] [%emt 0:00:30] (Be2) } 17...Qf5
{ [%eval 21,13] [%emt 0:00:39] (Qh5) } 18.h3
{ [%eval 128,13] [%emt 0:00:29] (Qc4) } 18...Bxf3
{ [%eval 20,13] [%emt 0:00:32] (Bxf3) } 19.gxf3
{ [%eval 128,12] [%emt 0: 00:29] (gxf3) } 19...Rfe8
{ [%eval 14,13] [%emt 0:00:48] (Qh5) } 20.Rhg1
{ [%eval 132, 13] [%emt 0:00:28] (e4) } 20...Rbd8
{ [%eval 29,12] [%emt 0:00:35] (Rbd8) } 21.e4
{ [%eval 115,12] [%emt 0:00:27] (e4) } 21...Qe5
{ [%eval 19,12] [%emt 0:00:15] (Qe5) } 22.Bd3
{ [%eval 127,12] [%emt 0:00:26] (Bd3) } 22...Ne7
{ [%eval 24,12] [%emt 0:00:21] (Ne7) } 23.Qxa7
{ [%eval 107,12] [%emt 0:00:26] (Qxa7) } 23...Qh2
{ [%eval 32,12] [%emt 0:00:34] (Ng6) } 24.Rg3
{ [%eval 120,12] [%emt 0:00:25] (Rg3) } 24...Ra8
{ [%eval 0,12] [%emt 0:00:22] (Rd6) } 25.Qc5
{ [%eval 126,12] [%emt 0:00:24] (Qd4) } 25...b6
{ [%eval 16,11] [%emt 0:00:16] (Ng6) } 26.Qd4
{ [%eval 149,14] [%emt 0:00: 24] (Qd4) } 26...g6
{ [%eval -43,12] [%emt 0:00:29] (Ng6) } 27.Rf1
{ [%eval 201,14] [%emt 0:00:23] (Rf1) } 27...Ra7
{ [%eval -92,12] [%emt 0:00:14] (h5) } 28.d6
{ [%eval 247,13] [%emt 0:00:23] (d6) } 28...cxd6
{ [%eval -198,13] [%emt 0:00:25] (cxd6) } 29.Qxd6
{ [%eval 242,14] [%emt 0:00:22] (Qxd6) } 29...Kh7
{ [%eval -200,14] [%emt 0:00:21] (Kh7) } 30.Bc4
{ [%eval 260,13] [%emt 0:00:21] (Bc4) } 30...Rf8
{ [%eval -209,13] [%emt 0:00:10] (g5) } 31.Rxg6
{ [%eval 261,15] [%emt 0:00:21] (Rxg6) } 31...Qxd6
{ [%eval -268,14] [%emt 0:00:18] (Qxd6) } 32.Rxd6
{ [%eval 268,14] [%emt 0:00:20] (Rxd6) } 32...Nc8
{ [%eval -302,15] [%emt 0:00:44] (Ng6) } 33.Rc6
{ [%eval 277,12] [%emt 0:00:20] (Rc6) } 33...b5
{ [%eval -254,14] [%emt 0:00:07] (Rd8) } 34.Bd3
{ [%eval 305,13] [%emt 0:00:19] (Bxb5) } 34...Rd8
{ [%eval -313,14] [%emt 0:00:07] (Ne7) } 35.Bc2
{ [%eval 289,14] [%emt 0:00:19] (Bc2) } 35...Kg7
{ [%eval -368,14] [%emt 0: 00:12] (Ne7) } 36.Rg1+
{ [%eval 331,15] [%emt 0:00:18] (Rg1) } 36...Kf8
{ [%eval -385, 17] [%emt 0:00:12] (Kf8) } 37.Rd1
{ [%eval 327,15] [%emt 0:00:18] (Rd1) } 37...Re8
{ [%eval -402,16] [%emt 0:00:16] (Ke7) } 38.Rxh6
{ [%eval 382,13] [%emt 0:00:17] (Rxh6) } 38...Kg7
{ [%eval -400,15] [%emt 0:00:14] (Kg7) } 39.Rh5
{ [%eval 386,13] [%emt 0:00:17] (Rh5) } 39...Rb7
{ [%eval -403,14] [%emt 0:00:08] (Rb7) } 40.Rg1+
{ [%eval 387,11] [%emt 0:00:17] (f4) } 40...Kf8
{ [%eval -422,16] [%emt 0:00:21] (Kf8) } 41.Bb3
{ [%eval 382,14] [%emt 0:00:54] (Rh8) } 41...Nd6
{ [%eval -431,16] [%emt 0:01: 12] (Nd6) } 42.h4
{ [%eval 374,13] [%emt 0:00:52] (Ka3) } 42...Rb6
{ [%eval -393,13] [%emt 0:00:24] (Nc4) } 43.Rgg5
{ [%eval 377,13] [%emt 0:00:51] (Kc2) } 43...Reb8
{ [%eval -472,15] [%emt 0:01:18] (Ke7) } 44.Bd5
{ [%eval 389,14] [%emt 0:00:50] (Bd5) } 44...Ke7
{ [%eval -462,15] [%emt 0:00:30] (Ke7) } 45.Kb3
{ [%eval 415,14] [%emt 0:00:48] (Rh7) } 45...b4
{ [%eval -458,15] [%emt 0:00:32] (Nc4) } 46.c4
{ [%eval 452,14] [%emt 0:00:47] (c4) } 46...Ra6
{ [%eval -554,15] [%emt 0:00:34] (Nb7) } 47.c5
{ [%eval 493,15] [%emt 0:00:46] (c5) } 47...Nb5
{ [%eval -583,15] [%emt 0:01:38] (Nb5) } 48.Re5+
{ [%eval 493,15] [%emt 0:00:45] (13) } 48...Kd7
{ [%eval -575,15] [%emt 0:00:36] (Kd7) } 49.c6+
{ [%eval 498,15] [%emt 0:00:44] (Bc4) } 49...Kd6
{ [%eval -498,16] [%emt 0:00:49] (Kd6) } 50.Bc4
{ [%eval 500,16] [%emt 0:00:43] (Bc4) } 1-0

[Event "41st Amateur D7"]
[Site "ChessGUI4"]
[Date "2013.07.06"]
[Round "11.2"]
[White "Waxman 2011"]
[Black "Butcher 1.64 64-bit"]
[Result "1/2-1/2"]
[BlackElo "2355"]
[ECO "D38"]
[EventDate "2013.??.??"]
[TimeControl "40/1500:40/1500:40/1500"]
[WhiteElo "2256"]

{ i5 Quad } 1.d4 { [%eval 0,1] [%emt 0:00:00] } 1...Nf6
{ [%eval 0,1] [%emt 0:00:00] } 2.c4 { [%eval 0,1] [%emt 0:00:00] } 2...e6
{ [%eval 0,1] [%emt 0:00:00] } 3.Nf3 { [%eval 0,1] [%emt 0:00:00] } 3...d5
{ [%eval 0,1] [%emt 0:00:00] } 4.Nc3 { [%eval 0,1] [%emt 0:00:00] } 4...Bb4
{ [%eval 0,1] [%emt 0:00:00] } 5.cxd5 { [%eval 0,1] [%emt 0: 00:00] }
5...exd5 { [%eval 0,1] [%emt 0:00:00] } 6.Bg5 { [%eval 0,1] [%emt 0:00:00] }
6...h6 { [%eval 0,1] [%emt 0:00:00] } 7.Bxf6 { [%eval 0,1] [%emt 0:00:00] }
7...Qxf6 { [%eval 0,1] [%emt 0:00:00] } 8.Qa4+ { [%eval 0,1] [%emt 0:00:00] }
8...Nc6 { [%eval 0, 1] [%emt 0:00:00] } 9.e3
{ [%eval -19,12] [%emt 0:00:47] } 9...O-O
{ [%eval -51,11] [%emt 0:01:06] (O-O) } 10.Bb5
{ [%eval -19,12] [%emt 0:00:42] (Ne5) } 10...Bxc3+
{ [%eval -38,11] [%emt 0:00:59] (Bxc3) } 11.bxc3
{ [%eval -7,11] [%emt 0:00:12] (bxc3) } 11...Bg4
{ [%eval -45,12] [%emt 0:00:59] (Ne7) } 12.Be2
{ [%eval -20,12] [%emt 0:01:24] (Bxc6) } 12...Rfe8
{ [%eval -34,11] [%emt 0:00:58] (Rab8) } 13.O-O
{ [%eval -10,12] [%emt 0:01:09] (Qd1) } 13...Rad8
{ [%eval -27,11] [%emt 0:01:04] (Ne7) } 14.c4
{ [%eval -2,12] [%emt 0:00:44] (Qd1) } 14...dxc4
{ [%eval -44,10] [%emt 0:01:03] (dxc4) } 15.Rab1
{ [%eval 2,12] [%emt 0:00:40] (Qxc4) } 15...b6
{ [%eval -37,11] [%emt 0:01:02] (b6) } 16.Qxc4
{ [%eval -2,12] [%emt 0:00:42] (Qxc4) } 16...Re7
{ [%eval -33, 11] [%emt 0:01:01] (Bf5) } 17.Rfc1
{ [%eval 7,12] [%emt 0:00:40] (Rfd1) } 17...Rd6
{ [%eval -38,10] [%emt 0:01:00] (Na5) } 18.Qa6
{ [%eval 29,11] [%emt 0:01:13] (Qa4) } 18...Re8
{ [%eval 0,11] [%emt 0:01:42] (Kf8) } 19.Qb7
{ [%eval 65,11] [%emt 0: 00:49] (Qb7) } 19...Bf5
{ [%eval 0,10] [%emt 0:00:54] (Kh8) } 20.Rb2
{ [%eval 44,11] [%emt 0:00:38] (Rb5) } 20...Re7
{ [%eval 2,11] [%emt 0:00:54] (Re7) } 21.Qa8+
{ [%eval 47,12] [%emt 0:01:16] (Qa8) } 21...Kh7
{ [%eval 0,10] [%emt 0:00:45] (Kh7) } 22.a4
{ [%eval 23,12] [%emt 0:00:56] (Bb5) } 22...Bg6
{ [%eval -4,10] [%emt 0:00:45] (a5) } 23.h3
{ [%eval 38,11] [%emt 0:00:36] (Bb5) } 23...a5
{ [%eval -13,11] [%emt 0:00:44] (a5) } 24.Ne1
{ [%eval 6,10] [%emt 0:00:40] (Bd1) } 24...Nb4
{ [%eval -29,11] [%emt 0: 00:43] (Nb4) } 25.Qf3
{ [%eval -9,11] [%emt 0:00:34] (Qf3) } 25...Be4
{ [%eval -25,11] [%emt 0:00:43] (Qg5) } 26.Qxf6
{ [%eval -14,12] [%emt 0:00:44] (Qxf6) } 26...Rxf6
{ [%eval -22,12] [%emt 0:00:42] (Rxf6) } 27.Rb3
{ [%eval -14,12] [%emt 0:00:36] (Rd1) } 27...Rc6
{ [%eval -30,12] [%emt 0:00:42] (Na2) } 28.Rbc3
{ [%eval -6,14] [%emt 0:00:32] (Rxc6) } 28...Rxc3
{ [%eval -27,12] [%emt 0:00:40] (Rxc3) } 29.Rxc3
{ [%eval -2,13] [%emt 0:00:22] (Rxc3) } 29...Bc6
{ [%eval -24,12] [%emt 0:00:40] (Kg8) } 30.Bd1
{ [%eval -3,14] [%emt 0:00:34] (Bd1) } 30...Bd5
{ [%eval -21,12] [%emt 0:00:38] (Be4) } 31.Nd3
{ [%eval 0,14] [%emt 0:00:40] (Kh2) } 31...g5
{ [%eval -18,12] [%emt 0:00:38] (Na2) } 32.Bg4
{ [%eval 0,14] [%emt 0:00:33] (Kh2) } 32...Be4
{ [%eval -23,12] [%emt 0: 00:32] (Kg7) } 33.Ne5
{ [%eval -3,14] [%emt 0:00:37] (Ne5) } 33...f6
{ [%eval -14,12] [%emt 0:00:28] (Kg7) } 34.Bf3
{ [%eval -3,14] [%emt 0:00:36] (Bf3) } 34...Bxf3
{ [%eval -9,13] [%emt 0:00:28] (Bxf3) } 35.Nxf3
{ [%eval -3,14] [%emt 0:00:36] (Nxf3) } 35...Kg6
{ [%eval -9,13] [%emt 0:00:28] (h5) } 36.Nd2
{ [%eval 0,14] [%emt 0: 00:46] (g4) } 36...Na2
{ [%eval -16,13] [%emt 0:00:26] (h5) } 37.Rc4
{ [%eval 0,16] [%emt 0:00:39] (Ra3) } 37...Nb4
{ [%eval -8,13] [%emt 0:00:22] (Nb4) } 38.g3
{ [%eval 0,15] [%emt 0:00:42] (g4) } 38...Nd3
{ [%eval -11,12] [%emt 0:00:21] (h5) } 39.Rc3
{ [%eval 1,14] [%emt 0:00:21] (Rc3) } 39...Nb2
{ [%eval -15,13] [%emt 0:00:20] (Nb2) } 40.Ra3
{ [%eval 0,14] [%emt 0:00:24] (Ra3) } 40...h5
{ [%eval -1,12] [%emt 0:00:18] (c5) } 41.Kf1
{ [%eval 0,14] [%emt 0:00:33] (Kf1) } 41...c5
{ [%eval 0,14] [%emt 0:00: 50] (c5) } 42.Ra2
{ [%eval 0,15] [%emt 0:00:22] (Ra2) } 42...Nd3
{ [%eval 0,14] [%emt 0:00:49] (Nd3) } 43.Ra3
{ [%eval 0,16] [%emt 0:00:29] (Ra3) } 43...Nb2
{ [%eval 0,14] [%emt 0:00:49] (Nb2) } 44.Ra2
{ [%eval 0,16] [%emt 0:01:18] (Ra2) } 44...Nd3
{ [%eval 0,14] [%emt 0:00:48] } 45.Ra3 { [%eval 0,16] [%emt 0:00:28] (Ra3) }
45...Nb2 { [%eval 0,16] [%emt 0:00:48] } 1/2-1/2

[Event "41st Amateur D7"]
[Site "ChessGUI4"]
[Date "2013.07.06"]
[Round "11.3"]
[White "ProChess 1.02AD"]
[Black "Tigran 2.3 64-bit"]
[Result "0-1"]
[BlackElo "2289"]
[ECO "A11"]
[EventDate "2013.??.??"]
[TimeControl "40/1500:40/1500:40/1500"]
[WhiteElo "2244"]

{ i5 Quad } 1.c4 { [%eval 0,1] [%emt 0:00:00] } 1...c6
{ [%eval 0,1] [%emt 0:00:00] } 2.Nf3 { [%eval 0,1] [%emt 0:00:00] } 2...d5
{ [%eval 0,1] [%emt 0:00:00] } 3.e3 { [%eval 0,1] [%emt 0:00:00] } 3...Nf6
{ [%eval 0,1] [%emt 0:00:00] } 4.b3 { [%eval 0,1] [%emt 0:00:00] } 4...Bf5
{ [%eval 0,1] [%emt 0:00:00] } 5.Bb2 { [%eval 0,1] [%emt 0: 00:00] } 5...e6
{ [%eval 0,1] [%emt 0:00:00] } 6.Nc3 { [%eval 0,1] [%emt 0:00:00] } 6...h6
{ [%eval 0,1] [%emt 0:00:00] } 7.Be2 { [%eval 0,1] [%emt 0:00:00] } 7...Nbd7
{ [%eval 0,1] [%emt 0:00:00] } 8.O-O { [%eval 0,1] [%emt 0:00:00] } 8...Be7
{ [%eval 0,1] [%emt 0:00:00] } 9.d4 { [%eval 5,12] [%emt 0:00:38] } 9...O-O
{ [%eval -6,13] [%emt 0: 00:42] (Bb4) } 10.Bd3
{ [%eval 5,12] [%emt 0:00:47] (Bd3) } 10...Bxd3
{ [%eval -3,13] [%emt 0:00:42] (Bb4) } 11.Qxd3
{ [%eval 11,13] [%emt 0:02:30] (Qxd3) } 11...Qa5
{ [%eval -2,13] [%emt 0:00:36] (Qc7) } 12.c5
{ [%eval 16,11] [%emt 0:00:53] (Rfd1) } 12...b6
{ [%eval 23,13] [%emt 0:00:42] (b6) } 13.cxb6
{ [%eval 13,13] [%emt 0:01:17] (cxb6) } 13...axb6
{ [%eval 27,14] [%emt 0:00:34] (Qxb6) } 14.Ne5
{ [%eval 15,12] [%emt 0:01:19] (a4) } 14...Nxe5
{ [%eval 64,14] [%emt 0:00:43] (Nxe5) } 15.dxe5
{ [%eval 10,12] [%emt 0:00:41] (dxe5) } 15...Nd7
{ [%eval 64,12] [%emt 0:00:43] (Nd7) } 16.f4
{ [%eval 10,11] [%emt 0:00:27] (Ne2) } 16...b5
{ [%eval 89,12] [%emt 0:00:34] (b5) } 17.Ne2
{ [%eval 7,11] [%emt 0:01:22] (Rfd1) } 17...Nc5
{ [%eval 92,14] [%emt 0: 00:44] (c5) } 18.Qc2
{ [%eval 7,13] [%emt 0:00:39] (Qc2) } 18...Ne4
{ [%eval 97,13] [%emt 0:00:41] (Ne4) } 19.Nc3
{ [%eval 2,12] [%emt 0:00:38] (Nc3) } 19...Nxc3
{ [%eval 100,14] [%emt 0:00:45] (Nxc3) } 20.Bxc3
{ [%eval 0,13] [%emt 0:02:06] (Qxc3) } 20...b4
{ [%eval 100,14] [%emt 0:00:45] (Qb6) } 21.Be1
{ [%eval -1,12] [%emt 0:00:38] (Be1) } 21...Qa6
{ [%eval 104,13] [%emt 0:00:45] (Bc5) } 22.Bg3
{ [%eval 0,12] [%emt 0:00:40] (Bd2) } 22...c5
{ [%eval 109,14] [%emt 0:00:45] (c5) } 23.Rfc1
{ [%eval 0,11] [%emt 0:01:03] (e4) } 23...c4
{ [%eval 155,13] [%emt 0:00:45] (Rfc8) } 24.bxc4
{ [%eval -13,12] [%emt 0:00:47] (f5) } 24...Rfc8
{ [%eval 179,13] [%emt 0:00:46] (Rfc8) } 25.Qb2
{ [%eval -17,11] [%emt 0:00:26] (Rd1) } 25...dxc4
{ [%eval 222,14] [%emt 0:00:46] (dxc4) } 26.Qb1
{ [%eval -23,11] [%emt 0:00:24] (Be1) } 26...c3
{ [%eval 239,13] [%emt 0:00:46] (c3) } 27.Be1
{ [%eval -51,11] [%emt 0:00:57] (f5) } 27...Qe2
{ [%eval 285,14] [%emt 0:00:46] (Qe2) } 28.Bf2
{ [%eval -107,12] [%emt 0: 00:11] (Bf2) } 28...c2
{ [%eval 351,15] [%emt 0:00:47] (c2) } 29.Qb2
{ [%eval -150,12] [%emt 0:00:39] (Qb2) } 29...Rd8
{ [%eval 355,14] [%emt 0:00:40] (Ra3) } 30.Re1
{ [%eval -206,11] [%emt 0:00:12] (Re1) } 30...Rd1
{ [%eval 376,15] [%emt 0:00:48] (Rd1) } 31.Raxd1
{ [%eval -277,12] [%emt 0:00:43] (Raxd1) } 31...Qxd1
{ [%eval 389,15] [%emt 0:00:49] (Qxd1) } 32.g3
{ [%eval -281,11] [%emt 0:00:11] (h3) } 32...Bc5
{ [%eval 538, 14] [%emt 0:00:49] (b3) } 33.Kg2
{ [%eval -276,10] [%emt 0:00:09] (Rf1) } 33...Bxe3
{ [%eval 753,15] [%emt 0:00:49] (Qd2) } 34.Qb3
{ [%eval -497,12] [%emt 0:00:33] (Bxe3) } 34...Qxe1
{ [%eval 1125,15] [%emt 0:00:51] (Qxe1) } 35.Bxe1
{ [%eval -785,13] [%emt 0:00:14] (Bxe1) } 35...c1=Q
{ [%eval 1212,15] [%emt 0:00:45] (c1=Q) } 36.Bxb4
{ [%eval -897,12] [%emt 0:00:17] (Bxb4) } 36...Qg1+
{ [%eval 1212,13] [%emt 0:00:54] (Qg1) } 37.Kf3
{ [%eval -1053,12] [%emt 0:00:11] (Kf3) } 0-1